Cogmind - Beta 14 @@@ ROGUE MODE // 2024.12.13 @ 01:40:42 Player: AshCrow Result: Destroyed by RM-PA8(R) with Subdweller Laser Performance ------------- Evolutions (0) 0 Regions Visited (3) 600 Robots Destroyed (13) 65 Value Destroyed (257) 257 Prototype IDs (0) 0 Alien Tech Used (0) 0 Bonus (0) 0 TOTAL SCORE: 922 Bonus ------- None Cogmind --------- Core Integrity 0/250 Matter 82/300 Energy 99/100 System Corruption 0% Temperature Cool (6) Movement Core (100) Ox1 Location -10/Subcaves Parts ------- > --- POWER (1) -------- (None) > --- PROPULSION (2) --- (None) > --- UTILITY (2) ------ Small Storage Unit > --- WEAPON (2) ------- (None) > --- INVENTORY (8) ---- Light Ion Engine Cryofiber Web EM Pulse Gun Medium Laser Small Laser Peak State ------------ > --- POWER ------------ Light Deuterium Engine > --- PROPULSION ------- Light Treads Light Treads > --- UTILITY ---------- Small Storage Unit Seismic Detector > --- WEAPON ----------- EM Pulse Cannon Minigun > --- INVENTORY -------- Ion Engine Light Ion Engine Cryofiber Web EM Pulse Gun Medium Laser Small Laser Grenade Launcher Rocket Launcher [Rating: 14] Favorites ----------- Power Light Deuterium Engine Engine Light Deuterium Engine Propulsion Light Treads Treads Light Treads Utility Small Storage Unit Device Seismic Detector Storage Small Storage Unit Weapon Medium Laser Energy Gun Medium Laser Energy Cannon EM Pulse Cannon Ballistic Gun Minigun Launcher Rocket Launcher Build | -11 -10 -10 -10 ------- Run | Yrd Mat Min Sub Slots Evolved . | . . . . Power . | . . . . Propulsion . | . . . . Utility . | . . . . Weapon . | . . . . Parts Attached 21 | 8 1 3 9 Power 4 | 2 . 1 1 Engine 4 | 2 . 1 1 Core . | . . . . Reactor . | . . . . Propulsion 2 | 2 . . . Treads 2 | 2 . . . Leg . | . . . . Wheel . | . . . . Hover . | . . . . Flight . | . . . . Utility 2 | 2 . . . Device 1 | 1 . . . Storage 1 | 1 . . . Processor . | . . . . Hackware . | . . . . Protection . | . . . . Artifact . | . . . . Weapon 13 | 2 1 2 8 Energy Gun 3 | 2 1 . . Energy Cannon 1 | . . . 1 Ballistic Gun 4 | . . . 4 Ballistic Cannon . | . . . . Launcher 5 | . . 2 3 Special Weapon . | . . . . Impact Weapon . | . . . . Slashing Weapon . | . . . . Piercing Weapon . | . . . . Special Melee Weapon . | . . . . Unidentified Prototypes . | . . . . Parts Lost 9 | . . . 9 Power 2 | . . . 2 Propulsion 2 | . . . 2 Utility 1 | . . . 1 Weapon 4 | . . . 4 Highest Loss Streak 7 | . . . 7 To Critical Strikes . | . . . . Average Slot Usage (%) 97 | . 100 99 94 Engine 13 | . 14 14 13 Treads 27 | . 28 28 27 Device 12 | . 14 14 11 Storage 14 | . 14 14 14 Energy Gun 10 | . 28 14 2 Energy Cannon 2 | . . . 5 Ballistic Gun 5 | . . . 14 Launcher 8 | . . 12 4 Peak Build Rating 14 | 7 7 11 14 Average Rating 9 | 5 7 9 12 On Entrance 6 | . 7 7 11 Naked Turns . | . . . . Heaviest Build 20 | 14 15 17 20 Greatest Support 40 | 40 40 40 40 Greatest Overweight (x) 1 | . . . 1 Average Overweight (x) . | . . . . Largest Inventory Capacity 8 | 8 8 8 8 Average Capacity 7 | 7 8 8 8 Most Carried 8 | 3 3 8 8 Average Carried 6 | 2 2 6 7 Final Capacity 8 | 8 8 8 8 Final Carried 8 | 3 3 8 5 Class Distribution -------------------- 100% | Mutant Dominant Class ---------------- Mutant | -10/Materials Mutant | -10/Mines Mutant | -10/Subcaves Resources | -11 -10 -10 -10 ----------- Run | Yrd Mat Min Sub Matter Collected 489 | 266 . 45 178 Remotely . | . . . . Salvage Created 318 | 69 . 48 201 Parts 32 | 13 . 4 15 Haulers Intercepted . | . . . . Recyclers Shooed . | . . . . Parts Field Recycled . | . . . . Retrieved Matter . | . . . . Parts Self-Destructed 7 | . . . 7 Prevented . | . . . . Kills | -11 -10 -10 -10 ------- Run | Yrd Mat Min Sub Combat Hostiles Destroyed 8 | . . 3 5 Guns 5 | . . 1 4 AOE 3 | . . 2 1 Classes Destroyed 6 | 2 . 2 2 Worker 1 | 1 . . . Builder 1 | . . 1 . Tunneler 3 | 3 . . . Swarmer 3 | . . 3 . Artisan 2 | . . . 2 Subdweller 5 | . . . 5 Best Kill Streak 4 | 2 . 4 2 Combat Bots Only 3 | . . 3 2 Max Kills in Single Turn 2 | 1 . 2 1 Gunslinging . | . . . . Exploded 2 | . . 2 1 Melee . | . . . . Uniques/NPCs Destroyed . | . . . . Combat | -11 -10 -10 -10 -------- Run | Yrd Mat Min Sub Hostile Shots Fired 80 | . 2 14 64 Missed 21 | . 2 3 16 Damage Taken 1226 | . . 153 1073 Core 263 | . . 16 247 Absorbed by Shields . | . . . . Core Remaining (%) 100 | 100 . . . Volleys Fired 60 | 14 . 8 38 Largest 2 | 2 . 2 2 Hottest 88 | 80 . 80 88 Shots Fired 106 | 27 . 10 69 Gun 87 | 27 . 8 52 Cannon 4 | . . . 4 Launcher 15 | . . 2 13 Special . | . . . . Kinetic 50 | . . . 50 Thermal 23 | 13 . 8 2 Explosive 15 | . . 2 13 Electromagnetic 18 | 14 . . 4 Robot Hit Streak 13 | 5 . 8 13 Robot Miss Streak 2 | 2 . . 1 Penetration Max . | . . . . Secondary Targets . | . . . . Shots Hit Robots 54 | 16 . 4 34 Core Hits 22 | 5 . 5 12 Critical Kills . | . . . . Critical Parts Destroyed . | . . . . Critical Strikes 1 | 1 . . . Corrupt 1 | 1 . . . Melee Attacks . | . . . . Impact . | . . . . Slashing . | . . . . Piercing . | . . . . Sneak Attacks . | . . . . Combat Hostiles . | . . . . Follow-up Attacks . | . . . . Damage Inflicted 1219 | 271 . 166 782 Guns 580 | 191 . 49 340 Cannons 65 | . . . 65 Explosions 541 | 47 . 117 377 Melee . | . . . . Ramming 33 | 33 . . . Kinetic 327 | . . . 327 Thermal 166 | 104 . 49 13 Explosive 494 | . . 117 377 Electromagnetic 199 | 134 . . 65 Impact . | . . . . Slashing . | . . . . Piercing . | . . . . Highest Corruption . | . . . . Average Corruption . | . . . . Corruption Purged . | . . . . Corruption Blocked . | . . . . Overload Shots . | . . . . Overflow Damage 30 | . . 30 . Projectiles . | . . . . Explosions 30 | . . 30 . Melee . | . . . . Knockbacks . | . . . . Impact . | . . . . Kinetic . | . . . . Secondary . | . . . . Self-Inflicted Damage 231 | . . 72 159 Shots 8 | . . 2 6 Rammed 13 | 12 . 1 . Targets Rammed 14 | 12 . 1 1 Kicked . | . . . . Crushed 1 | . . . 1 Highest Temperature 126 | 126 . 66 20 Average Temperature 36 | 43 . 29 10 Received Heat Transfer 261 | . . . 261 Siege Activations . | . . . . Robots Corrupted . | . . . . Combat Hostiles . | . . . . Parts Fried . | . . . . Impact Corruptions . | . . . . Robots Melted . | . . . . Combat Hostiles . | . . . . Parts Melted . | . . . . Heat Transferred 360 | 175 . 148 37 Parts Sabotaged . | . . . . Parts Stolen . | . . . . Parts Stripped . | . . . . Power Chain Reactions 1 | 1 . . . Alert | -11 -10 -10 -10 ------- Run | Yrd Mat Min Sub Peak Influence 102 | 20 35 102 . Initial 13 | . 13 13 . Average 29 | 7 17 40 . Maximum Alert Level . | . . . . Low Security (%) 100 | 100 100 100 . Level 1 . | . . . . Level 2 . | . . . . Level 3 . | . . . . Level 4 . | . . . . Level 5 . | . . . . High Security . | . . . . Max Security . | . . . . Squads Dispatched 2 | . 1 1 . Investigation 1 | . . 1 . Extermination . | . . . . Reinforcement 1 | . 1 . . Assault . | . . . . Garrison . | . . . . Intercept . | . . . . Searches Triggered . | . . . . Construction Impeded . | . . . . Haulers Reinforced . | . . . . Active Scanning Responses . | . . . . Cargo Convoy Interrupts . | . . . . Stealth | -11 -10 -10 -10 --------- Run | Yrd Mat Min Sub Distress Signals . | . . . . Communications Jammed . | . . . . Distress Signals . | . . . . Times Spotted 15 | . 4 3 8 Peak Tracking Total 5 | . 5 3 4 Tactical Retreats . | . . . . Traps | -11 -10 -10 -10 ------- Run | Yrd Mat Min Sub Traps Triggered . | . . . . Indirectly . | . . . . Trap Hack Attempts . | . . . . Triggered . | . . . . Disarmed . | . . . . Reprogrammed . | . . . . Reused . | . . . . Traps Extracted . | . . . . Installed . | . . . . Triggered . | . . . . Machines | -11 -10 -10 -10 ---------- Run | Yrd Mat Min Sub Machines Disabled . | . . . . Max in Single Turn . | . . . . Machines Repaired . | . . . . Machines Dismantled . | . . . . Machines Sabotaged . | . . . . Overloaded Fab Kills . | . . . . Hacking | -11 -10 -10 -10 --------- Run | Yrd Mat Min Sub Machines Accessed 3 | . 1 1 1 Terminals 1 | . 1 . . Fabricators . | . . . . Repair Stations . | . . . . Recycling Units . | . . . . Scanalyzers . | . . . . Garrison Access . | . . . . Total Hacks 5 | . 1 1 3 Successful 5 | . 1 1 3 Failed . | . . . . Catastrophic . | . . . . Database Lockouts . | . . . . Manual 1 | . 1 . . Terminals 1 | . 1 . . Fabricators . | . . . . Repair Stations . | . . . . Recycling Units . | . . . . Scanalyzers . | . . . . Garrison Access . | . . . . Terminal Hacks 5 | . 1 1 3 Record 3 | . . . 3 Part Schematic 1 | . 1 . . Open Door 1 | . . 1 . Fabricator Hacks . | . . . . Repair Station Hacks . | . . . . Recycling Unit Hacks . | . . . . Scanalyzer . | . . . . Garrison Access Hacks . | . . . . Unauthorized Hacks . | . . . . Terminals . | . . . . Fabricators . | . . . . Repair Stations . | . . . . Recycling Units . | . . . . Scanalyzers . | . . . . Garrison Access . | . . . . Data Cores Recovered . | . . . . Used . | . . . . Hacking Detections 1 | . 1 . . Full Trace Events . | . . . . Feedback Events . | . . . . Feedback Blocked . | . . . . Robot Schematics Acquired . | . . . . Robots Built . | . . . . Authchips . | . . . . Time . | . . . . Total Robot Build Rating . | . . . . Part Schematics Acquired 1 | . 1 . . Parts Built . | . . . . Authchips . | . . . . Time . | . . . . Total Part Build Rating . | . . . . Parts Repaired . | . . . . Time . | . . . . Parts Recycled . | . . . . Recycled Matter . | . . . . Retrieved Matter . | . . . . Retrieved Components . | . . . . Parts Scanalyzed . | . . . . Part Schematics Acquired . | . . . . Parts Damaged . | . . . . Bothacking | -11 -10 -10 -10 ------------ Run | Yrd Mat Min Sub Used RIF Installer . | . . . . Robots Hacked . | . . . . Non-combat . | . . . . Combat . | . . . . Robot Hacks Applied . | . . . . Relay Couplers Released . | . . . . Fabnet Peak Effective % . | . . . . Robots Rewired . | . . . . Allies Hacked . | . . . . Hacks Repelled . | . . . . Allies | -11 -10 -10 -10 -------- Run | Yrd Mat Min Sub Total Allies . | . . . . Largest Group . | . . . . Highest-Rated Group . | . . . . Highest-Rated Ally . | . . . . Total Orders . | . . . . Ally Attacks . | . . . . Total Damage . | . . . . Kills . | . . . . Allies Corrupted . | . . . . Allies Melted . | . . . . Intel | -11 -10 -10 -10 ------- Run | Yrd Mat Min Sub Robot Analysis Total . | . . . . Derelict Logs Recovered 1 | . . . 1 Drone Launches . | . . . . Drone Recoveries . | . . . . Exploration | -11 -10 -10 -10 ------------- Run | Yrd Mat Min Sub Turns Passed 2168 | 376 103 934 755 Spaces Moved 883 | 191 63 236 393 Core 6 | 2 . . 4 Treads 877 | 189 63 236 389 Legs . | . . . . Wheels . | . . . . Hover . | . . . . Flight . | . . . . Fastest Speed 50 | 50 160 160 100 Average Speed 159 | 158 160 160 159 Slowest Speed 160 | 160 160 160 160 Overloaded Moves . | . . . . Propulsion Burnouts . | . . . . Robots Hopped . | . . . . Cave-ins Triggered . | . . . . Exploration Rate (%) 25 | 9 17 42 33 Regions Visited 3 Branch Regions 2 Pre-discovered Areas 1 | . . . 1 Known Exits Taken . | . . . . Unknown Exits Taken 3 | 1 1 1 . Scrap Searched 4 | . . 1 3 Spaces Dug . | . . . . Terrain Destroyed 75 | 5 . 14 56 Melee . | . . . . Projectile . | . . . . AOE 75 | 5 . 14 56 Terrain Rammed . | . . . . Walls Destroyed . | . . . . Machines Disabled . | . . . . Actions | -11 -10 -10 -10 --------- Run | Yrd Mat Min Sub Total 1530 | 226 65 781 458 Wait 546 | . . 530 16 Move 880 | 190 62 235 393 Hop . | . . . . Pick Up 6 | 2 1 3 . Fast Attach 8 | 7 . 1 . Attach 3 | . . . 3 Detach 1 | . . 1 . Swap 10 | 1 1 2 6 Drop 2 | . 1 . 1 Fire 60 | 14 . 8 38 Melee . | . . . . Ram . | . . . . Kick . | . . . . Crush 14 | 12 . 1 1 Escape Stasis . | . . . . Rewire . | . . . . Trap . | . . . . Miscellaneous . | . . . . Route ------- -11/Scrapyard -10/Materials -10/Mines -10/Subcaves History --------- Turn | Location | Event 13 | -11/Scrapyard | Discovered new exit (range 15) 377 | -11/Scrapyard | Entered Materials 399 | -10/Materials | Build established: Mutant 432 | -10/Materials | Discovered new exit (range 6) 480 | -10/Materials | Entered Mines 570 | -10/Mines | Received a Rocket Launcher from a helpful Derelict 798 | -10/Mines | Met a Derelict shopkeep closing up shop 1406 | -10/Mines | Discovered new exit (range 6) 1414 | -10/Mines | Entered Subcaves 1684 | -10/Subcaves | Visited Clippyterm 1689 | -10/Subcaves | Learned Factory emergency access door positions 1848 | -10/Subcaves | Learned location of Zion (-6) 1848 | -10/Subcaves | Met a Zionite searching for "candidates" 1877 | -10/Subcaves | A swath of the cavern ceiling suddenly collapsed 1959 | -10/Subcaves | Shifting Twisted Machinery released Shrapnel Trap 1973 | -10/Subcaves | Shifting Twisted Machinery released Mak. System Restoration Module 2142 | -10/Subcaves | Core integrity fell below 50% 2162 | -10/Subcaves | Core integrity fell below 20% 2169 | -10/Subcaves | Destroyed by RM-PA8(R) with Subdweller Laser Last Messages --------------- The unstable cave ceiling collapses. Acquired 15 matter. Acquired 5 matter. Seismic Detector destroyed. Lgt. Deuterium Engine destroyed. WU-F4L(R) destroyed. DK-0LX(R) destroyed. Acquired 40 matter. Acquired 38 matter. BC-JJE(u) builds Twisted Machinery. Minigun destroyed. Barrage Gun destroyed. Lgt. Treads destroyed. BC-JJE(u) deconstructs Twisted Machinery. Ion Engine destroyed. Grenade Launcher destroyed. The unstable cave ceiling collapses. Rocket Launcher destroyed. Lgt. Treads destroyed. Y-45 Defender destroyed. Map ----- +----------------------------------------------------+ | ????????????????????????????????????????????## | | ?????????????????????????????????????????????# | | ????????????????????????????????????????????## | | ????????????????????????????????????????????# | | ????????????????????????????????????????????# # | | ????????????????????????????????????????????### ## | | ??????????????????????????????????????????????#### | | ??????????????????????????????????????######???# | | ????????????????????????????????????### ### | | ?????????????????????????????????# ## | | ????????????????????????????????????# & [ | | ?????????????????????????????????????# ###= | | ?????????????????????????????????????# ????##! | | ???????????????????????????????????## #???###"# | | ??????????????????????????????????## #???## ### | | ??????????????????????????????##### #???##""""" | | ??????????????????????????????# #???#"""##" | | ?????????????????###?###???##### #???##" "## | | ????????????????## ## #### ## ####?#"""### | | ????????????????# #??# ## | | ????????????????# ##?# | | ????????????????# ###### ### # | | ????????????????# R####?# " ### | | ????????????????## #?# * #?? | | ?????????????????###### ! ## % ###?# | | ??????????????????????## @%[ # # ""#???# | | ???????????????????????# g* # ## " #?# | | ???????????????????????# ## ###" # "" #? | | ???????????????????????##########?#"" # "" # | | ??????????????????????????????????"""""" """ | | ????????????????????????????????? """"""""" | | ?????????????????????????????????? "" """"""" ?#" | | ???????????????????????????????????"" """"????? | | ????????????????????????????????????" ? """?????? | | ?????????????????????????????????????" ??????????? | | ?????????????????????????????????????????????????? | | ?????????????????????????????????????????????????? | | ?????????????????????????????????????????????????? | | ?????????????????????????????????????????????????? | | ?????????????????????????????????????????????????? | | ?????????????????????????????????????????????????? | | ?????????????????????????????????????????????????? | | ?????????????????????????????????????????????????? | | ?????????????????????????????????????????????????? | | ?????????????????????????????????????????????????? | | ?????????????????????????????????????????????????? | | ?????????????????????????????????????????????????? | | ?????????????????????????????????????????????????? | | ?????????????????????????????????????????????????? | | ?????????????????????????????????????????????????? | +----------------------------------------------------+ Best States ------------- Heat Dissipation 25 Energy Generation 14 Energy Capacity 250 Matter Stores 300 Matter Capacity 300 Sight Range 16 Terrain Scan Density 10 Evasion (%) 40 Recoil Reduction 2 Item Schematics ----------------- Sensor Array | -10/Materials | Hacked Robot Schematics ------------------ None Fabricated ------------ Nothing Alien Tech Used ----------------- None Achievements -------------- None Challenges ------------ None Game ------ Seed PropulsionZhirovGenerator Manual? 0 Play Time 00:12:27 Cumulative 28.2 hours Start 2024.12.13 @ 01:29:28 End 2024.12.13 @ 01:40:42 Sessions 1 Manual Loads 0 Difficulty Rogue Special Mode None Game No. 43 Rogue 43 Adventurer 0 Explorer 0 Win Type - Total 0 Types 0/0/0/0/0/0/0/0/0 Lore% 22 Gallery% 26 Achievement% 26 Wizard Run 0 Options --------- Layout 1 ASCII 0 Keyboard 1 Movement Numpad Keybinds 0 Fullscreen 1 Font 24/Smallcaps Map View 50x35 Zoom Use 0% Tactical HUD 0 Map Filters NONE Filters NONE Steam 1 RUN: a15e3e23-336e-4fe8-af8c-b751034f9040